[Event "*** Titled Tuesday Blitz"]
[Site "Chess.com"]
[Date "2020.04.21"]
[Round "1"]
[White "Tayson_7"]
[Black "igorcadilhac"]
[Result "1-0"]
[WhiteElo "2649"]
[BlackElo "2311"]
[TimeControl "180+1"]
[EndTime "10:06:17 PDT"]
[Termination "Tayson_7 won on time"]

1. e4 {[%clk 0:03:00]} 1... e5 {[%clk 0:02:59.1]} 2. Nf3 {[%clk 0:02:59.5]} 2...
Nc6 {[%clk 0:02:59.3]} 3. Bb5 {[%clk 0:03:00.1]} 3... a6 {[%clk 0:02:58.8]} 4.
Ba4 {[%clk 0:03:00.7]} 4... Nf6 {[%clk 0:02:56.7]} 5. O-O {[%clk 0:02:59.9]}
5... Be7 {[%clk 0:02:54.5]} 6. Re1 {[%clk 0:02:59.7]} 6... b5 {[%clk 0:02:53.3]}
7. Bb3 {[%clk 0:03:00.3]} 7... d6 {[%clk 0:02:51.6]} 8. c3 {[%clk 0:02:59.8]}
8... O-O {[%clk 0:02:51.3]} 9. h3 {[%clk 0:02:53.4]} 9... Nd7 {[%clk 0:02:51]}
10. d4 {[%clk 0:02:45.7]} 10... Bf6 {[%clk 0:02:49.5]} 11. Bc2 {[%clk
0:02:29.1]} 11... Bb7 {[%clk 0:02:35.1]} 12. d5 {[%clk 0:02:18.6]} 12... Ne7
{[%clk 0:02:34.2]} 13. b3 {[%clk 0:02:14.5]} 13... Nb6 {[%clk 0:01:40.9]} 14. a4
{[%clk 0:02:10.7]} 14... c5 {[%clk 0:01:35.9]} 15. a5 {[%clk 0:02:03.6]} 15...
Nd7 {[%clk 0:01:34.3]} 16. Nbd2 {[%clk 0:02:03.6]} 16... Qc7 {[%clk 0:01:24.6]}
17. Nf1 {[%clk 0:02:03.6]} 17... Ng6 {[%clk 0:01:16.7]} 18. Ne3 {[%clk
0:02:02.7]} 18... Rfc8 {[%clk 0:00:57.3]} 19. c4 {[%clk 0:01:55.5]} 19... b4
{[%clk 0:00:56.5]} 20. g3 {[%clk 0:01:53.5]} 20... Rf8 {[%clk 0:00:40.5]} 21.
Kg2 {[%clk 0:01:51.9]} 21... Rae8 {[%clk 0:00:39.9]} 22. h4 {[%clk 0:01:43.1]}
22... Bd8 {[%clk 0:00:39.2]} 23. h5 {[%clk 0:01:35.1]} 23... Ne7 {[%clk
0:00:38.2]} 24. Nh2 {[%clk 0:01:33.3]} 24... Bc8 {[%clk 0:00:37.2]} 25. Nhg4
{[%clk 0:01:26.6]} 25... Nb8 {[%clk 0:00:29.8]} 26. Bb2 {[%clk 0:01:24.6]} 26...
f5 {[%clk 0:00:29.3]} 27. Nxe5 {[%clk 0:01:20.2]} 27... dxe5 {[%clk 0:00:25.1]}
28. d6 {[%clk 0:01:20.7]} 28... Qd7 {[%clk 0:00:23]} 29. dxe7 {[%clk 0:01:20.5]}
29... Qxe7 {[%clk 0:00:16.9]} 30. Nxf5 {[%clk 0:01:17.1]} 30... Bxf5 {[%clk
0:00:08.6]} 31. exf5 {[%clk 0:01:18]} 31... Nc6 {[%clk 0:00:08.9]} 32. Qd5+
{[%clk 0:01:18.1]} 32... Kh8 {[%clk 0:00:07.4]} 33. Qxc6 {[%clk 0:01:18.4]}
33... Qg5 {[%clk 0:00:03.9]} 34. Be4 {[%clk 0:01:16.2]} 1-0

[Event "*** Titled Tuesday Blitz"]
[Site "Chess.com"]
[Date "2020.04.21"]
[Round "1"]
[White "promen1999"]
[Black "LizaSolovyova"]
[Result "0-1"]
[WhiteElo "2922"]
[BlackElo "2481"]
[TimeControl "180+1"]
[EndTime "10:06:18 PDT"]
[Termination "LizaSolovyova won by resignation"]

1. Nf3 {[%clk 0:02:59.5]} 1... f5 {[%clk 0:02:59.5]} 2. g3 {[%clk 0:02:59.3]}
2... Nf6 {[%clk 0:03:00.4]} 3. Bg2 {[%clk 0:03:00]} 3... e6 {[%clk 0:03:00.7]}
4. O-O {[%clk 0:02:59.9]} 4... Be7 {[%clk 0:03:01.6]} 5. d4 {[%clk 0:02:59.1]}
5... O-O {[%clk 0:03:02.5]} 6. c4 {[%clk 0:02:59.3]} 6... d6 {[%clk 0:03:03.4]}
7. b3 {[%clk 0:02:58.6]} 7... Qe8 {[%clk 0:03:03.8]} 8. Bb2 {[%clk 0:02:57.5]}
8... Ne4 {[%clk 0:03:04.2]} 9. Nc3 {[%clk 0:02:55.4]} 9... Qg6 {[%clk
0:03:02.9]} 10. e3 {[%clk 0:02:55.2]} 10... a5 {[%clk 0:02:58.5]} 11. Rc1 {[%clk
0:02:50.7]} 11... Nd7 {[%clk 0:02:53.1]} 12. Nxe4 {[%clk 0:02:46.3]} 12... fxe4
{[%clk 0:02:53.2]} 13. Nd2 {[%clk 0:02:46.9]} 13... Nf6 {[%clk 0:02:49]} 14. Qc2
{[%clk 0:02:44.5]} 14... d5 {[%clk 0:02:46.5]} 15. cxd5 {[%clk 0:02:43.6]} 15...
exd5 {[%clk 0:02:47.4]} 16. Qxc7 {[%clk 0:02:41.9]} 16... Bb4 {[%clk 0:02:45.4]}
17. Rc2 {[%clk 0:02:27.6]} 17... Ng4 {[%clk 0:02:39.6]} 18. a3 {[%clk 0:02:20]}
18... Bd6 {[%clk 0:02:39.3]} 19. Qc3 {[%clk 0:02:18.5]} 19... Qh5 {[%clk
0:02:36]} 20. h4 {[%clk 0:02:05.4]} 20... g5 {[%clk 0:02:32.5]} 21. Nxe4 {[%clk
0:02:04.4]} 21... dxe4 {[%clk 0:02:29.4]} 22. Qc4+ {[%clk 0:01:56.3]} 22... Kh8
{[%clk 0:02:26]} 23. Qd5 {[%clk 0:01:48.5]} 23... Qh6 {[%clk 0:02:12.8]} 24.
Qxg5 {[%clk 0:01:21.7]} 24... Qxg5 {[%clk 0:02:12.2]} 25. hxg5 {[%clk
0:01:22.6]} 25... Bf5 {[%clk 0:02:10.2]} 26. Rfc1 {[%clk 0:01:15]} 26... a4
{[%clk 0:02:09]} 27. b4 {[%clk 0:01:14.6]} 27... Kg7 {[%clk 0:02:05.3]} 28. d5+
{[%clk 0:01:11.9]} 28... Kg6 {[%clk 0:02:05.3]} 29. Bd4 {[%clk 0:01:12.5]} 29...
Kxg5 {[%clk 0:02:03.8]} 30. Bc5 {[%clk 0:01:05.4]} 30... Rad8 {[%clk 0:02:00.3]}
31. Rc4 {[%clk 0:01:00.5]} 31... Rfe8 {[%clk 0:01:59.8]} 32. Rd1 {[%clk
0:00:54.8]} 32... Ne5 {[%clk 0:01:58.2]} 33. Rcd4 {[%clk 0:00:53.3]} 33... Nd3
{[%clk 0:01:55.3]} 34. Bxd6 {[%clk 0:00:44]} 34... Rxd6 {[%clk 0:01:55.4]} 35.
Bf1 {[%clk 0:00:41.5]} 35... Ne5 {[%clk 0:01:53.7]} 36. Be2 {[%clk 0:00:39.6]}
36... Bg4 {[%clk 0:01:51.6]} 37. Bxg4 {[%clk 0:00:32.5]} 37... Nxg4 {[%clk
0:01:52.5]} 38. Kg2 {[%clk 0:00:32.6]} 38... h5 {[%clk 0:01:48.6]} 39. R1d2
{[%clk 0:00:31.9]} 39... h4 {[%clk 0:01:44.7]} 40. gxh4+ {[%clk 0:00:31.4]}
40... Kxh4 {[%clk 0:01:45.6]} 41. f3 {[%clk 0:00:30]} 41... exf3+ {[%clk
0:01:43.4]} 42. Kxf3 {[%clk 0:00:26.9]} 42... Rxe3+ {[%clk 0:01:43.7]} 43. Kg2
{[%clk 0:00:26.9]} 43... Rg3+ {[%clk 0:01:43.2]} 44. Kf1 {[%clk 0:00:25.2]}
44... Rxa3 {[%clk 0:01:39.2]} 45. Rg2 {[%clk 0:00:22.6]} 45... Ra1+ {[%clk
0:01:36.1]} 46. Ke2 {[%clk 0:00:22]} 46... Ra2+ {[%clk 0:01:36.3]} 47. Kf3
{[%clk 0:00:21.8]} 47... Rxg2 {[%clk 0:01:36.4]} 48. Kxg2 {[%clk 0:00:21.7]}
48... Rxd5 {[%clk 0:01:36.4]} 0-1

[Event "*** Titled Tuesday Blitz"]
[Site "Chess.com"]
[Date "2020.04.21"]
[Round "1"]
[White "Misha_Bilous"]
[Black "LiemLe"]
[Result "0-1"]
[WhiteElo "2472"]
[BlackElo "3005"]
[TimeControl "180+1"]
[EndTime "10:06:20 PDT"]
[Termination "LiemLe won on time"]

1. d4 {[%clk 0:03:00.9]} 1... Nf6 {[%clk 0:02:59.7]} 2. c4 {[%clk 0:03:00.8]}
2... e6 {[%clk 0:02:59.7]} 3. Nf3 {[%clk 0:03:00.3]} 3... b6 {[%clk 0:02:59.4]}
4. g3 {[%clk 0:03:00.4]} 4... Bb7 {[%clk 0:02:59.2]} 5. Bg2 {[%clk 0:03:00.3]}
5... g6 {[%clk 0:02:59.9]} 6. O-O {[%clk 0:02:47.2]} 6... Bg7 {[%clk 0:02:59.6]}
7. Qc2 {[%clk 0:02:43.3]} 7... O-O {[%clk 0:02:58.6]} 8. Nc3 {[%clk 0:02:41.8]}
8... d5 {[%clk 0:02:59]} 9. Ne5 {[%clk 0:02:36.5]} 9... c6 {[%clk 0:02:33.6]}
10. Rd1 {[%clk 0:02:20.2]} 10... Nfd7 {[%clk 0:02:29.9]} 11. Nxd7 {[%clk
0:02:10.8]} 11... Nxd7 {[%clk 0:02:30.8]} 12. cxd5 {[%clk 0:02:10]} 12... cxd5
{[%clk 0:02:31.7]} 13. Bf4 {[%clk 0:02:05.3]} 13... Rc8 {[%clk 0:02:29.7]} 14.
Qb3 {[%clk 0:01:53.5]} 14... a6 {[%clk 0:02:20]} 15. a4 {[%clk 0:01:47.6]} 15...
Rc4 {[%clk 0:02:15.8]} 16. e3 {[%clk 0:01:11.5]} 16... Qe7 {[%clk 0:02:14.3]}
17. g4 {[%clk 0:00:45]} 17... Rfc8 {[%clk 0:02:06.1]} 18. h3 {[%clk 0:00:36.4]}
18... Qb4 {[%clk 0:01:47.1]} 19. Qxb4 {[%clk 0:00:26.9]} 19... Rxb4 {[%clk
0:01:48]} 20. Rab1 {[%clk 0:00:26.3]} 20... Bf8 {[%clk 0:01:46.1]} 21. Bf1
{[%clk 0:00:23.5]} 21... Nb8 {[%clk 0:01:21]} 22. Rdc1 {[%clk 0:00:20.5]} 22...
Nc6 {[%clk 0:01:18.8]} 23. Be2 {[%clk 0:00:08.1]} 23... Na5 {[%clk 0:01:17.6]}
24. Bd1 {[%clk 0:00:03.1]} 24... Nb3 {[%clk 0:01:07.7]} 25. Bxb3 {[%clk
0:00:03.3]} 25... Rxb3 {[%clk 0:01:08.6]} 26. Ne2 {[%clk 0:00:02.3]} 26... Rc4
{[%clk 0:01:04.4]} 27. Rxc4 {[%clk 0:00:02]} 27... dxc4 {[%clk 0:01:05.3]} 28.
Nc1 {[%clk 0:00:01.3]} 28... Rb4 {[%clk 0:01:01.6]} 29. b3 {[%clk 0:00:01.7]}
29... Bd5 {[%clk 0:00:54.8]} 0-1

[Event "*** Titled Tuesday Blitz"]
[Site "Chess.com"]
[Date "2020.04.21"]
[Round "1"]
[White "Siemba"]
[Black "Astaneh"]
[Result "0-1"]
[WhiteElo "2249"]
[BlackElo "2599"]
[TimeControl "180+1"]
[EndTime "10:06:21 PDT"]
[Termination "Astaneh won on time"]

1. e4 {[%clk 0:03:00.9]} 1... c6 {[%clk 0:02:58.2]} 2. d4 {[%clk 0:02:59.6]}
2... d5 {[%clk 0:02:58.6]} 3. Nd2 {[%clk 0:02:59]} 3... dxe4 {[%clk 0:02:57.8]}
4. Nxe4 {[%clk 0:02:59.9]} 4... Nd7 {[%clk 0:02:55.5]} 5. Bc4 {[%clk 0:02:59]}
5... Ngf6 {[%clk 0:02:54.7]} 6. Ng5 {[%clk 0:02:58.2]} 6... e6 {[%clk
0:02:54.3]} 7. Qe2 {[%clk 0:02:57.8]} 7... Nb6 {[%clk 0:02:45.4]} 8. Bd3 {[%clk
0:02:57.4]} 8... h6 {[%clk 0:02:22.3]} 9. N5f3 {[%clk 0:02:34.8]} 9... c5 {[%clk
0:02:19.3]} 10. Ne5 {[%clk 0:01:47.5]} 10... cxd4 {[%clk 0:02:16.5]} 11. Ngf3
{[%clk 0:01:44.6]} 11... Bd7 {[%clk 0:02:03.6]} 12. Nxf7 {[%clk 0:01:42.3]}
12... Kxf7 {[%clk 0:02:01.8]} 13. Ne5+ {[%clk 0:01:40.5]} 13... Kg8 {[%clk
0:02:02.1]} 14. Ng6 {[%clk 0:01:18.2]} 14... Bd6 {[%clk 0:01:57.7]} 15. Nxh8
{[%clk 0:01:10.4]} 15... Kxh8 {[%clk 0:01:58.6]} 16. f4 {[%clk 0:01:04.1]} 16...
Nbd5 {[%clk 0:01:54.3]} 17. O-O {[%clk 0:01:01.3]} 17... Qc7 {[%clk 0:01:45.8]}
18. g3 {[%clk 0:00:59.3]} 18... Re8 {[%clk 0:01:43.6]} 19. Bg6 {[%clk
0:00:48.7]} 19... Re7 {[%clk 0:01:42.1]} 20. Bd2 {[%clk 0:00:46.6]} 20... a6
{[%clk 0:01:27]} 21. Rae1 {[%clk 0:00:45]} 21... Bb5 {[%clk 0:01:13.3]} 22. Bd3
{[%clk 0:00:29.3]} 22... Bc6 {[%clk 0:01:13.5]} 23. g4 {[%clk 0:00:19.9]} 23...
Bxf4 {[%clk 0:01:07.9]} 24. g5 {[%clk 0:00:15.4]} 24... hxg5 {[%clk 0:01:01.5]}
25. Qg2 {[%clk 0:00:04.4]} 25... Bxd2 {[%clk 0:00:52.4]} 26. Qh3+ {[%clk
0:00:03.2]} 26... Kg8 {[%clk 0:00:51.5]} 0-1

[Event "*** Titled Tuesday Blitz"]
[Site "Chess.com"]
[Date "2020.04.21"]
[Round "1"]
[White "SimonKnightRivendell"]
[Black "Fighter008"]
[Result "0-1"]
[WhiteElo "1914"]
[BlackElo "2492"]
[TimeControl "180+1"]
[EndTime "10:06:22 PDT"]
[Termination "Fighter008 won by resignation"]

1. d4 {[%clk 0:03:00.2]} 1... Nf6 {[%clk 0:02:59.5]} 2. c4 {[%clk 0:02:59.4]}
2... g6 {[%clk 0:02:59.7]} 3. Nf3 {[%clk 0:02:59.1]} 3... Bg7 {[%clk 0:03:00.2]}
4. g3 {[%clk 0:02:59.6]} 4... d6 {[%clk 0:03:00.7]} 5. Bg2 {[%clk 0:03:00]} 5...
O-O {[%clk 0:03:01.3]} 6. O-O {[%clk 0:03:00.4]} 6... c6 {[%clk 0:03:00.7]} 7.
Nbd2 {[%clk 0:03:00.9]} 7... Bf5 {[%clk 0:03:00.4]} 8. Re1 {[%clk 0:02:59.6]}
8... Ne4 {[%clk 0:02:59.7]} 9. Nh4 {[%clk 0:02:56.4]} 9... Nxd2 {[%clk
0:02:57.4]} 10. Nxf5 {[%clk 0:02:54.6]} 10... Nxc4 {[%clk 0:02:53.5]} 11. Nxg7
{[%clk 0:02:53.5]} 11... Kxg7 {[%clk 0:02:54.4]} 12. b3 {[%clk 0:02:44]} 12...
Nb6 {[%clk 0:02:52.7]} 13. e4 {[%clk 0:02:41.3]} 13... e5 {[%clk 0:02:47.4]} 14.
Bb2 {[%clk 0:02:38.9]} 14... Qe7 {[%clk 0:02:44]} 15. Rc1 {[%clk 0:02:29.8]}
15... N8d7 {[%clk 0:02:40.3]} 16. f4 {[%clk 0:02:18]} 16... f6 {[%clk
0:02:38.1]} 17. f5 {[%clk 0:02:10.5]} 17... exd4 {[%clk 0:02:34.6]} 18. Qxd4
{[%clk 0:02:05.8]} 18... Ne5 {[%clk 0:02:34.6]} 19. Red1 {[%clk 0:02:00.5]}
19... Rad8 {[%clk 0:02:31.1]} 20. h3 {[%clk 0:01:58.4]} 20... c5 {[%clk
0:02:18.7]} 21. Qd2 {[%clk 0:01:53.8]} 21... g5 {[%clk 0:02:07.8]} 22. Qe2
{[%clk 0:01:48.6]} 22... Qf7 {[%clk 0:02:03.6]} 23. Kh2 {[%clk 0:01:47.8]} 23...
Rfe8 {[%clk 0:02:02.6]} 24. Rd2 {[%clk 0:01:41.2]} 24... h5 {[%clk 0:01:58.3]}
25. Rcd1 {[%clk 0:01:38.6]} 25... Nc8 {[%clk 0:01:58.4]} 26. Rd5 {[%clk
0:01:06.1]} 26... Kh6 {[%clk 0:01:51]} 27. Qd2 {[%clk 0:01:00.6]} 27... Nc6
{[%clk 0:01:32.2]} 28. h4 {[%clk 0:00:57.2]} 28... Rg8 {[%clk 0:01:31]} 29.
hxg5+ {[%clk 0:00:54.7]} 29... Rxg5 {[%clk 0:01:30.9]} 30. Bc1 {[%clk 0:00:53]}
30... Kh7 {[%clk 0:01:29]} 31. Qf2 {[%clk 0:00:52.6]} 31... Rg7 {[%clk
0:01:26.3]} 32. Qf4 {[%clk 0:00:51.8]} 32... Rh8 {[%clk 0:01:23.4]} 33. Bb2
{[%clk 0:00:45]} 33... Kg8 {[%clk 0:01:18]} 34. Qh4 {[%clk 0:00:44.5]} 34... Rh6
{[%clk 0:01:16.4]} 35. Rxd6 {[%clk 0:00:39.2]} 35... Nxd6 {[%clk 0:01:14]} 36.
Rxd6 {[%clk 0:00:39.2]} 36... Rg4 {[%clk 0:01:14.5]} 37. Qh3 {[%clk 0:00:35.1]}
37... Qe7 {[%clk 0:01:07.4]} 38. Bf3 {[%clk 0:00:33.5]} 38... Qxd6 {[%clk
0:01:04.5]} 39. Bxg4 {[%clk 0:00:33.4]} 39... Qd2+ {[%clk 0:01:04.2]} 0-1

[Event "*** Titled Tuesday Blitz"]
[Site "Chess.com"]
[Date "2020.04.21"]
[Round "1"]
[White "tan275"]
[Black "Chess_Boxer123"]
[Result "0-1"]
[WhiteElo "2147"]
[BlackElo "2540"]
[TimeControl "180+1"]
[EndTime "10:06:23 PDT"]
[Termination "Chess_Boxer123 won by resignation"]

1. d4 {[%clk 0:03:00.9]} 1... d5 {[%clk 0:02:59.4]} 2. c4 {[%clk 0:03:01.4]}
2... c6 {[%clk 0:02:59.4]} 3. Nc3 {[%clk 0:02:59.8]} 3... Nf6 {[%clk 0:02:59.5]}
4. e3 {[%clk 0:03:00.1]} 4... e6 {[%clk 0:02:59.8]} 5. Nf3 {[%clk 0:03:00]} 5...
Nbd7 {[%clk 0:02:59.9]} 6. Qc2 {[%clk 0:02:57.4]} 6... Bd6 {[%clk 0:02:59.2]} 7.
Bd3 {[%clk 0:02:56.7]} 7... O-O {[%clk 0:02:58.8]} 8. O-O {[%clk 0:02:56]} 8...
e5 {[%clk 0:02:59.1]} 9. cxd5 {[%clk 0:02:45.7]} 9... cxd5 {[%clk 0:02:59.1]}
10. dxe5 {[%clk 0:02:45.5]} 10... Nxe5 {[%clk 0:02:59.7]} 11. Nxe5 {[%clk
0:02:43.2]} 11... Bxe5 {[%clk 0:03:00.6]} 12. h3 {[%clk 0:02:42.1]} 12... h6
{[%clk 0:02:57.8]} 13. Nb5 {[%clk 0:02:27.1]} 13... Bd7 {[%clk 0:02:50.3]} 14.
Nd4 {[%clk 0:02:14.2]} 14... Qb6 {[%clk 0:02:49.9]} 15. Rd1 {[%clk 0:02:11.2]}
15... Rac8 {[%clk 0:02:45.5]} 16. Qe2 {[%clk 0:02:08.9]} 16... Rfe8 {[%clk
0:02:41.3]} 17. Qf3 {[%clk 0:02:08.6]} 17... Ne4 {[%clk 0:02:27]} 18. Rb1 {[%clk
0:00:48.3]} 18... Bxd4 {[%clk 0:01:51.5]} 19. exd4 {[%clk 0:00:47.2]} 19... Bb5
{[%clk 0:01:24.7]} 20. Bf4 {[%clk 0:00:32.6]} 20... Bxd3 {[%clk 0:01:22.6]} 21.
Qxd3 {[%clk 0:00:33.5]} 21... Rc4 {[%clk 0:01:15.8]} 22. b3 {[%clk 0:00:32.5]}
22... Rc3 {[%clk 0:01:14.7]} 23. Qe2 {[%clk 0:00:27.5]} 23... Rec8 {[%clk
0:01:14.8]} 24. Rbc1 {[%clk 0:00:26.2]} 24... Rxc1 {[%clk 0:01:07.2]} 25. Rxc1
{[%clk 0:00:27.1]} 25... Rxc1+ {[%clk 0:01:07.4]} 26. Bxc1 {[%clk 0:00:26.6]}
26... Qxd4 {[%clk 0:01:08.3]} 27. Be3 {[%clk 0:00:25.9]} 27... Qa1+ {[%clk
0:01:05.1]} 28. Kh2 {[%clk 0:00:25.9]} 28... Qe5+ {[%clk 0:01:05.6]} 29. g3
{[%clk 0:00:23]} 29... Nxg3 {[%clk 0:01:06]} 30. f4 {[%clk 0:00:17.5]} 30...
Qxf4 {[%clk 0:00:59.2]} 31. Bxf4 {[%clk 0:00:16]} 31... Nxe2 {[%clk 0:00:59.4]}
0-1

[Event "*** Titled Tuesday Blitz"]
[Site "Chess.com"]
[Date "2020.04.21"]
[Round "1"]
[White "HouseOfDurin"]
[Black "DoHoChess"]
[Result "0-1"]
[WhiteElo "2084"]
[BlackElo "2513"]
[TimeControl "180+1"]
[EndTime "10:06:24 PDT"]
[Termination "DoHoChess won by checkmate"]

1. d4 {[%clk 0:03:00.9]} 1... Nf6 {[%clk 0:02:58.4]} 2. Bg5 {[%clk 0:03:01.3]}
2... d5 {[%clk 0:02:57.5]} 3. Bxf6 {[%clk 0:03:00.8]} 3... gxf6 {[%clk
0:02:57.6]} 4. e3 {[%clk 0:03:01.4]} 4... c5 {[%clk 0:02:57.4]} 5. c4 {[%clk
0:03:01.3]} 5... cxd4 {[%clk 0:02:56]} 6. Qxd4 {[%clk 0:03:00.6]} 6... dxc4
{[%clk 0:02:45.5]} 7. Qxd8+ {[%clk 0:02:58]} 7... Kxd8 {[%clk 0:02:45.3]} 8.
Bxc4 {[%clk 0:02:58.7]} 8... e6 {[%clk 0:02:43.4]} 9. Nc3 {[%clk 0:02:56.7]}
9... Nc6 {[%clk 0:02:42.3]} 10. O-O-O+ {[%clk 0:02:56.4]} 10... Ke8 {[%clk
0:02:40.9]} 11. Nb5 {[%clk 0:02:55]} 11... Rb8 {[%clk 0:02:38.7]} 12. Nf3 {[%clk
0:02:34.7]} 12... a6 {[%clk 0:02:38]} 13. Nbd4 {[%clk 0:02:34.2]} 13... Bd7
{[%clk 0:02:37.4]} 14. Kb1 {[%clk 0:01:54.7]} 14... Rg8 {[%clk 0:02:30.7]} 15.
g3 {[%clk 0:01:33.2]} 15... f5 {[%clk 0:02:16.6]} 16. Rhe1 {[%clk 0:01:24.1]}
16... Rc8 {[%clk 0:02:15.2]} 17. Bb3 {[%clk 0:01:10.3]} 17... Bb4 {[%clk
0:02:13.2]} 18. Re2 {[%clk 0:01:04.5]} 18... Na5 {[%clk 0:02:09.4]} 19. a3
{[%clk 0:00:57.4]} 19... Nxb3 {[%clk 0:02:07]} 20. axb4 {[%clk 0:00:44.4]} 20...
Nxd4 {[%clk 0:01:33.2]} 21. Rxd4 {[%clk 0:00:43.9]} 21... Bc6 {[%clk 0:01:32.7]}
22. Ne5 {[%clk 0:00:42.4]} 22... Be4+ {[%clk 0:01:33]} 23. Ka2 {[%clk
0:00:41.9]} 23... Bd5+ {[%clk 0:01:32.6]} 24. Kb1 {[%clk 0:00:41.1]} 24... Be4+
{[%clk 0:01:28.8]} 25. Ka2 {[%clk 0:00:40.7]} 25... Rc1 {[%clk 0:01:28.1]} 26.
Red2 {[%clk 0:00:39.3]} 26... Bd5+ {[%clk 0:01:26.8]} 27. b3 {[%clk 0:00:36.4]}
27... Ke7 {[%clk 0:01:27.3]} 28. Kb2 {[%clk 0:00:15.6]} 28... Rgc8 {[%clk
0:01:24]} 29. Nc4 {[%clk 0:00:15.5]} 29... Rh1 {[%clk 0:01:21.7]} 30. h4 {[%clk
0:00:14.3]} 30... Rc6 {[%clk 0:01:12.8]} 31. Ne5 {[%clk 0:00:10.6]} 31... Rcc1
{[%clk 0:01:11.8]} 32. Nd3 {[%clk 0:00:09.6]} 32... Rb1+ {[%clk 0:01:10.7]} 33.
Kc2 {[%clk 0:00:07.6]} 33... Bxb3+ {[%clk 0:01:10.9]} 34. Kc3 {[%clk 0:00:06.8]}
34... Bd5 {[%clk 0:01:11.8]} 35. Rc2 {[%clk 0:00:02.9]} 35... Rhd1 {[%clk
0:01:08.5]} 36. Nf4 {[%clk 0:00:02.5]} 36... Rb3# {[%clk 0:01:07.8]} 0-1

[Event "*** Titled Tuesday Blitz"]
[Site "Chess.com"]
[Date "2020.04.21"]
[Round "1"]
[White "lilleper1"]
[Black "ChadBiryani"]
[Result "1-0"]
[WhiteElo "2722"]
[BlackElo "2379"]
[TimeControl "180+1"]
[EndTime "10:06:25 PDT"]
[Termination "lilleper1 won by checkmate"]

1. e4 {[%clk 0:03:00.9]} 1... c5 {[%clk 0:02:46.1]} 2. Nf3 {[%clk 0:02:59.1]}
2... d6 {[%clk 0:02:45.8]} 3. d4 {[%clk 0:02:59.3]} 3... cxd4 {[%clk 0:02:46.7]}
4. Nxd4 {[%clk 0:02:59.5]} 4... Nf6 {[%clk 0:02:47.4]} 5. Nc3 {[%clk 0:02:59.7]}
5... g6 {[%clk 0:02:47.5]} 6. Be3 {[%clk 0:02:59.6]} 6... Bg7 {[%clk 0:02:47.2]}
7. f3 {[%clk 0:02:59.9]} 7... O-O {[%clk 0:02:47.6]} 8. Qd2 {[%clk 0:03:00.1]}
8... Nc6 {[%clk 0:02:46.7]} 9. Bc4 {[%clk 0:03:00.4]} 9... Ne5 {[%clk
0:02:45.1]} 10. Bb3 {[%clk 0:02:59.6]} 10... Bd7 {[%clk 0:02:45.6]} 11. O-O-O
{[%clk 0:02:58.3]} 11... Rc8 {[%clk 0:02:46]} 12. Kb1 {[%clk 0:02:53.1]} 12...
Nc4 {[%clk 0:02:40.1]} 13. Bxc4 {[%clk 0:02:50.5]} 13... Rxc4 {[%clk 0:02:41]}
14. g4 {[%clk 0:02:50.3]} 14... b5 {[%clk 0:02:37]} 15. b3 {[%clk 0:02:49.5]}
15... Rc5 {[%clk 0:02:19.8]} 16. Ne6 {[%clk 0:02:38.7]} 16... fxe6 {[%clk
0:01:38.7]} 17. Bxc5 {[%clk 0:02:38.7]} 17... dxc5 {[%clk 0:01:39]} 18. e5
{[%clk 0:02:38.8]} 18... Qa8 {[%clk 0:00:50.2]} 19. exf6 {[%clk 0:02:34.5]}
19... Bxf6 {[%clk 0:00:49.8]} 20. Ne4 {[%clk 0:02:21.8]} 20... Bc6 {[%clk
0:00:49.8]} 21. Nxf6+ {[%clk 0:02:10.7]} 21... exf6 {[%clk 0:00:49.6]} 22. Qe3
{[%clk 0:01:27.9]} 22... Bd5 {[%clk 0:00:43.8]} 23. Rhf1 {[%clk 0:01:26]} 23...
c4 {[%clk 0:00:42.1]} 24. f4 {[%clk 0:01:24.8]} 24... cxb3 {[%clk 0:00:40.6]}
25. axb3 {[%clk 0:01:24.4]} 25... Rc8 {[%clk 0:00:36.1]} 26. Rf2 {[%clk
0:01:14.2]} 26... b4 {[%clk 0:00:19.4]} 27. f5 {[%clk 0:01:09.7]} 27... Rc3
{[%clk 0:00:19.7]} 28. Qd4 {[%clk 0:01:08.9]} 28... gxf5 {[%clk 0:00:09.4]} 29.
gxf5 {[%clk 0:01:07.3]} 29... Qc6 {[%clk 0:00:07.5]} 30. fxe6 {[%clk 0:00:58.3]}
30... Be4 {[%clk 0:00:07.7]} 31. Rg1+ {[%clk 0:00:54.9]} 31... Kf8 {[%clk
0:00:06.9]} 32. Qxf6+ {[%clk 0:00:54.5]} 32... Ke8 {[%clk 0:00:05.6]} 33. Qf8#
{[%clk 0:00:54.1]} 1-0

[Event "*** Titled Tuesday Blitz"]
[Site "Chess.com"]
[Date "2020.04.21"]
[Round "1"]
[White "gurelediz"]
[Black "Jenia84"]
[Result "1/2-1/2"]
[WhiteElo "2609"]
[BlackElo "2292"]
[TimeControl "180+1"]
[EndTime "10:06:26 PDT"]
[Termination "Game drawn by repetition"]

1. e4 {[%clk 0:03:00.4]} 1... e5 {[%clk 0:02:58.9]} 2. Nf3 {[%clk 0:03:00.2]}
2... Nc6 {[%clk 0:02:58]} 3. Bb5 {[%clk 0:02:59.7]} 3... Nf6 {[%clk 0:02:56.7]}
4. O-O {[%clk 0:02:59]} 4... Nxe4 {[%clk 0:02:55.5]} 5. Re1 {[%clk 0:02:58]}
5... Nd6 {[%clk 0:02:53.9]} 6. Nxe5 {[%clk 0:02:57.7]} 6... Nxe5 {[%clk
0:02:49]} 7. Rxe5+ {[%clk 0:02:58.6]} 7... Be7 {[%clk 0:02:46.6]} 8. Bf1 {[%clk
0:02:58.9]} 8... O-O {[%clk 0:02:46.9]} 9. d4 {[%clk 0:02:57.8]} 9... Ne8 {[%clk
0:02:46.3]} 10. Nc3 {[%clk 0:02:53.7]} 10... c6 {[%clk 0:02:39]} 11. d5 {[%clk
0:02:36.7]} 11... Bf6 {[%clk 0:02:21.5]} 12. Re1 {[%clk 0:02:29.6]} 12... Bxc3
{[%clk 0:02:18.1]} 13. bxc3 {[%clk 0:02:29]} 13... cxd5 {[%clk 0:02:18.2]} 14.
Ba3 {[%clk 0:02:24.1]} 14... d6 {[%clk 0:02:16.8]} 15. Qxd5 {[%clk 0:02:23.2]}
15... Be6 {[%clk 0:02:16.9]} 16. Qxb7 {[%clk 0:02:12.8]} 16... Nf6 {[%clk
0:02:05.3]} 17. Rad1 {[%clk 0:02:05.3]} 17... Qa5 {[%clk 0:02:00.5]} 18. Bxd6
{[%clk 0:02:00.4]} 18... Rfc8 {[%clk 0:01:59.9]} 19. Bb4 {[%clk 0:01:53.1]}
19... Qxa2 {[%clk 0:01:58]} 20. Ra1 {[%clk 0:01:43]} 20... Qxc2 {[%clk
0:01:24.1]} 21. Rxa7 {[%clk 0:01:37.7]} 21... Rab8 {[%clk 0:01:21.6]} 22. Qa6
{[%clk 0:01:26.6]} 22... Ne4 {[%clk 0:01:16]} 23. Re2 {[%clk 0:01:04.9]} 23...
Qb1 {[%clk 0:01:14.2]} 24. Rb7 {[%clk 0:00:28.6]} 24... Ra8 {[%clk 0:00:57.6]}
25. Ra7 {[%clk 0:00:17.3]} 25... Rab8 {[%clk 0:00:46.9]} 26. Rb7 {[%clk
0:00:16.6]} 26... Ra8 {[%clk 0:00:46.8]} 27. Ra7 {[%clk 0:00:16.5]} 27... Rab8
{[%clk 0:00:29.9]} 1/2-1/2